[Event "97th Argentine Championship 2022"]
[Site "Barichole"]
[Date "2022.12.06"]
[Round "7.2"]
[White "Peralta, Fernando"]
[Black "Valerga, Diego"]
[Result "1-0"]
[ECO "D45"]
[WhiteElo "2587"]
[BlackElo "2438"]
[Annotator "TA"]
[PlyCount "91"]
[EventDate "2022.12.01"]
[EventType "tourn"]
[EventCountry "ARG"]
[SourceTitle "playchess.com"]
[Source "ChessBase"]
[SourceQuality "1"]
[TimeControl "40/5400+30:1800+30"]

{[%evp 15,91,17,16,16,27,21,17,7,0,0,0,0,0,0,0,7,7,12,0,0,29,0,7,12,18,0,0,5,74,55,63,58,73,70,95,95,104,100,127,48,41,46,39,47,149,159,157,153,162,171,134,130,120,93,112,99,132,32,178,191,191,191,430,246,317,313,372,400,482,473,467,389,715,687,610,596,541,504]} 1. d4 {[%emt 0:00:03] Wojtaszek,Radoslaw} d5 {[%emt 0:00:09]} 2. c4 {[%emt 0:00:05]} e6 {[%emt 0:00:04]} 3. Nf3 {[%emt 0:00:08]} Nf6 {[%emt 0:00:45]} 4. Nc3 {[%emt 0:00:04]} c6 {[%emt 0:00:55]} 5. e3 {[%emt 0:00:10]} a6 {[%emt 0:00:10]} 6. b3 {[%emt 0:00:42]} Bb4 {[%emt 0:00:22]} 7. Bd2 {[%emt 0:00:04]} Nbd7 {[%emt 0:00:06]} 8. Bd3 {[%emt 0:00:10]} O-O {[%emt 0:00:08]} 9. O-O {[%emt 0:00:04][%cal Oc3d5] D45: Semi-Slav: 5 e3.} Bd6 {[%emt 0:00:10]} 10. Re1 {[%emt 0:02:49]} h6 {[%emt 0:00:51]} 11. e4 {[%emt 0:02:45] And now e5 would win. The position is equal.} dxc4 {[%emt 0:00:56]} 12. bxc4 {[%emt 0:00:05][%cal Bb3c4,Bc4c5][%mdl 32]} e5 $1 {[%emt 0:00:07]} 13. c5 {[%emt 0:00:09]} Bc7 {[%emt 0:00:45][%cal Od7c5]} 14. Qc2 {[%emt 0:00:27]} Re8 {[%emt 0:01:46]} 15. Rad1 {[%emt 0:03:39]} exd4 {[%emt 0:03:36]} 16. Ne2 {[%emt 0:00:22] [#]} Ng4 $146 {[%emt 0:26:02]} ({Predecessor:} 16... Qe7 17. Rc1 Rd8 18. Nexd4 Ne5 19. Nxe5 Qxe5 20. Nf3 Qe7 21. e5 Nd5 22. Qc4 Be6 {1-0 (52) Wojtaszek,R (2737)-Fridman,D (2638) Dortmund 2019 CBM 191 [Wojtaszek,Radoslaw]}) 17. Nexd4 {[%emt 0:03:21]} Nde5 {[%emt 0:02:47]} 18. h3 {[%emt 0:20:58]} Nxd3 $1 {[%emt 0:04:41]} 19. Qxd3 {[%emt 0:00:06]} Ne5 {[%emt 0:07:53]} 20. Nxe5 {[%emt 0:00:13]} Bxe5 {[%emt 0:00:07]} 21. Be3 {[%emt 0:00:49]} g5 {[%emt 0:12:06] Prevents f4.} (21... Qf6 $11 {keeps the balance.}) 22. Qc2 {[%emt 0:06:10][%cal Od4c6]} (22. Qe2 $5 {[%cal Rd4c6]}) 22... Qe7 {[%emt 0:04:25]} 23. Nf3 {[%emt 0:01:37]} Bg7 {[%emt 0:00:29]} 24. Bd4 {[%emt 0:03:09]} g4 {[%emt 0:12:18]} 25. hxg4 {[%emt 0:05:03]} Bxg4 {[%emt 0:00:17]} 26. Bxg7 {[%emt 0:00:10]} Kxg7 {[%emt 0:04:43]} 27. Rd6 {[%emt 0:02:38]} ({White should play} 27. Qc3+ $1 $16 Qf6 28. e5) 27... Bxf3 $1 $14 {[%emt 0:02:23]} 28. Qc3+ {[%emt 0:02:57][%mdl 64] Zwischenzug, Double Attack} Qe5 {[%emt 0:00:29]} 29. Qxf3 {[%emt 0:00:05]} Re7 {[%emt 0:03:50]} ({Better is} 29... Re6 $14) 30. Qe3 $1 $16 {[%emt 0:02:07]} Qh5 {[%emt 0:05:03]} 31. e5 {[%emt 0:44:51] aiming for Qd4. White is more active.} Rae8 {[%emt 0:01:27][%cal Re7e5]} 32. f4 {[%emt 0:00:00] Threatens to win with Qd3.} Re6 {[%emt 0:00:47]} 33. Qe4 {[%emt 0:00:00] Against Qf5} Qg4 {[%emt 0:01:30]} 34. Re3 {[%emt 0:00:00]} h5 {[%emt 0:01:29]} 35. Kh2 {[%emt 0:00:00] Black must now prevent Rg3.} h4 {[%emt 0:00:18] Prevents Rg3.} 36. Rh3 {[%emt 0:00:00]} (36. Rf3 $16) 36... Rg6 {[%emt 0:01:36] This costs Black the game.} ({Black should try} 36... f6 $1 $14) 37. Qf3 $1 $18 {[%emt 0:00:00] Chess con chili.} Qxf3 {[%emt 0:01:28]} 38. Rxf3 {[%emt 0:00:00][%mdl 4096] Endgame KRR-KRR} Kf8 $2 {[%emt 0:01:20]} (38... Rg8 39. Rb3 Kh7) 39. Rb3 {[%emt 0:00:00]} (39. Rxg6 $142 fxg6 40. Kh3) 39... Rg4 {[%emt 0:00:56] [#]} 40. Rf6 {[%emt 0:00:00]} (40. Rxb7 Rxf4 41. Rf6 (41. Rxc6 Rxe5 42. Rb2 a5 $11) 41... Rxf6 42. exf6 Re6 $14) 40... Rd8 {[%emt 0:00:00] [#]} 41. Kh3 $1 {[%emt 0:00:00]} (41. Rxb7 Rd2 $14) 41... Rg7 {[%emt 0:04:16]} 42. Rd6 {[%emt 0:01:11] Inhibits Rd1.} (42. Rxb7 Rd1 43. Kh2 (43. Rxc6 $2 Rh1#) 43... Rd2) (42. Kxh4 Rxg2 43. Kh3 (43. Rxb7 Rd1 $11) 43... Rg7 $18) 42... Rb8 {[%emt 0:01:40]} 43. Rxc6 {[%emt 0:12:30]} ({Less strong is} 43. Kxh4 Rxg2 44. Rd7 Kg7 45. Rg3+ (45. Rbxb7 $2 Rh8#) 45... Rxg3 46. Kxg3 Kg6 47. Rd6+ Kh5 $18) 43... Rg3+ $2 {[%emt 0:00:49]} (43... bxc6 44. Rxb8+ Ke7) 44. Rxg3 {[%emt 0:00:17] White is clearly winning.} bxc6 {[%emt 0:00:04]} 45. Rb3 {[%emt 0:02:03]} Rd8 {[%emt 0:00:07]} 46. Kxh4 {[%emt 0:00:35] Weighted Error Value: White=0.14 (very precise) /Black=0.24 (precise)} 1-0

[Event "97th Argentine Championship 2022"]
[Site "Barichole"]
[Date "2022.12.06"]
[Round "7.3"]
[White "Pichot, Alan"]
[Black "Perez Ponsa, Federico"]
[Result "1-0"]
[ECO "C78"]
[WhiteElo "2637"]
[BlackElo "2538"]
[Annotator "TA"]
[PlyCount "91"]
[EventDate "2022.12.01"]
[EventType "tourn"]
[EventCountry "ARG"]
[SourceTitle "playchess.com"]
[Source "ChessBase"]
[SourceQuality "1"]
[TimeControl "40/5400+30:1800+30"]

{[%evp 17,91,39,49,0,0,0,0,0,0,0,0,0,0,-16,83,72,68,70,61,66,65,74,72,58,62,75,43,27,30,31,96,107,98,90,120,115,119,120,120,119,120,119,119,119,119,119,138,138,138,138,138,138,145,145,138,138,145,138,138,138,1678,138,1703,1567,12820,10244,1741,1441,12835,7400,12835,12836,12841,12841,12841,12841]} 1. e4 {[%emt 0:00:07]} e5 {[%emt 0:00:05]} 2. Nf3 {[%emt 0:00:22]} Nc6 {[%emt 0:00:08]} 3. Bb5 {[%emt 0:00:08][%cal Bf1b5,Bb5a4,Ba4b3][%mdl 32]} a6 {[%emt 0:00:05]} 4. Ba4 {[%emt 0:00:04]} Nf6 {[%emt 0:00:05]} 5. O-O {[%emt 0:00:05]} b5 {[%emt 0:00:03]} 6. Bb3 {[%emt 0:00:06]} Bc5 {[%emt 0:00:04]} 7. a4 {[%emt 0:00:49]} Rb8 {[%emt 0:00:04]} 8. c3 {[%emt 0:00:22]} d6 {[%emt 0:00:05]} 9. d4 {[%emt 0:00:04]} Bb6 {[%emt 0:00:03]} 10. a5 {[%emt 0:00:07] C78: Ruy Lopez: Archangelsk and Möller Defences.} (10. Na3 $14 {is superior.}) 10... Ba7 $1 $11 {[%emt 0:00:06]} (10... Nxa5 11. Rxa5 Bxa5 12. dxe5 $14) (10... Bxa5 $2 11. dxe5 (11. d5 Ne7 $18) 11... dxe5 12. Qxd8+ Kxd8 13. Bd5 (13. Bxf7 Bb6 $16) 13... Nxd5 14. exd5 $18) 11. Be3 {[%emt 0:03:23]} Bg4 {[%emt 0:01:10]} 12. Nbd2 {[%emt 0:05:27] The position is equal.} exd4 {[%emt 0:00:16]} 13. cxd4 {[%emt 0:00:26]} O-O $1 {[%emt 0:00:10][%cal Oc6d4]} 14. h3 {[%emt 0:00:36]} Bh5 {[%emt 0:00:28]} (14... Bxf3 15. Nxf3 d5 16. e5 $14) 15. Re1 {[%emt 0:04:25] [#]} d5 $146 {[%emt 0:35:49]} (15... Nb4 $11) ({Predecessor:} 15... Bxd4 16. Nxd4 Nxd4 17. g4 Nxb3 18. Qxb3 Bg6 19. Bg5 h6 20. Bh4 Bh7 21. f4 g5 22. fxg5 {½-½ (55) Esipenko,A (2720)-Shirov,A (2659) Riga 2021}) 16. e5 {[%emt 0:18:45]} (16. Qc1 {is interesting.} dxe4 17. Qxc6 exf3 18. g4) 16... Ne4 {[%emt 0:00:59]} 17. Nxe4 {[%emt 0:01:08]} dxe4 {[%emt 0:01:38]} 18. Qc2 $1 {[%emt 0:00:22][%csl LRc6,LRe4]} (18. Rc1 $2 Nxa5 19. g4 Bxg4 20. hxg4 Nxb3 21. Qxb3 exf3 $19) 18... Nxa5 {[%emt 0:16:54]} 19. Rxa5 {[%emt 0:20:08][%cal Ba1a5,Ba5a6,Ba6d6][%mdl 32]} (19. Qxe4 $2 Nxb3 20. Rxa6 Bb6 $19) 19... exf3 {[%emt 0:03:51]} 20. Qf5 $36 {[%emt 0:01:03][%mdl 2048] White has good play.} Bg6 {[%emt 0:08:14]} 21. Qxf3 {[%emt 0:00:10]} Bxd4 {[%emt 0:00:10]} 22. Rd1 {[%emt 0:00:15]} (22. Rxa6 {simplifies} Kh8 23. Bxd4 Qxd4 24. Rc6) 22... c5 {[%emt 0:00:15]} 23. Rxa6 {[%emt 0:00:17]} Qc7 {[%emt 0:05:57]} ({Black should play} 23... Qe7 $14) 24. Bxd4 $16 {[%emt 0:08:45]} cxd4 {[%emt 0:00:05]} 25. Rd6 {[%emt 0:00:56] White has more active pieces.} (25. Qf4 {feels hotter.} d3 26. Rc1 Qb7 27. Rd6) 25... Qe7 {[%emt 0:03:59] Against h4} 26. Qg3 {[%emt 0:07:14]} ({But not} 26. R6xd4 $6 Qxe5 27. Qd5 Qe7 $14) 26... d3 {[%emt 0:06:34]} 27. e6 $1 {[%emt 0:00:45]} Rbd8 {[%emt 0:06:13]} (27... fxe6 $2 28. Rxe6 $18 (28. Bxe6+ Kh8 $15) (28. Bxe6+ Kh8 $11)) 28. exf7+ {[%emt 0:00:36]} Bxf7 {[%emt 0:00:33]} 29. Rxd8 {[%emt 0:00:14] The board is on fire.} Rxd8 {[%emt 0:00:34]} 30. Rxd3 {[%emt 0:00:21][%cal Og3e5] Qe5! is the strong threat.} Rxd3 {[%emt 0:01:59]} 31. Qxd3 {[%emt 0:04:44][%mdl 4096] Endgame Strongly threatening Bxf7+. KQB-KQB} Qe1+ {[%emt 0:00:52]} 32. Kh2 {[%emt 0:00:05] Threatening mate with Qd8+.} Qe5+ {[%emt 0:00:22]} 33. g3 {[%emt 0:00:07] White threatens Qd8+ and mate.} Bxb3 {[%emt 0:00:31]} 34. Qxb3+ {[%emt 0:00:07] KQ-KQ} Kh8 {[%emt 0:01:12]} 35. Qe3 {[%emt 0:06:30] Against h6} Qb8 {[%emt 0:00:18]} 36. b4 {[%emt 0:00:34]} h6 {[%emt 0:00:26]} 37. Qe4 {[%emt 0:02:17]} Qf8 {[%emt 0:04:19]} 38. Kg2 {[%emt 0:00:35]} Qf7 $2 {[%emt 0:00:59][%mdl 8192] [#]} (38... Qc8 $16 39. h4 Qd7) 39. g4 $2 {[%emt 0:02:51]} (39. Qc6 $1 $18 {[%cal Rc6b5]} Qf5 40. g4) 39... Kg8 $2 {[%emt 0:00:34][%mdl 8192] [#] This move loses the game for Black.} (39... Qd7 $16 40. h4 Kg8) 40. Qc6 $1 $18 {[%emt 0:00:00] White is clearly winning.} Qe7 {[%emt 0:00:00]} 41. Qxb5 {[%emt 0:02:39]} Qe4+ {[%emt 0:03:53]} 42. Kg3 {[%emt 0:00:05]} g5 {[%emt 0:00:04]} 43. Qf5 {[%emt 0:00:51]} Qc6 {[%emt 0:02:01]} 44. b5 {[%emt 0:01:49]} Qd6+ {[%emt 0:00:10]} 45. Kg2 {[%emt 0:00:11]} Kg7 {[%emt 0:00:05]} 46. Qe4 {[%emt 0:00:19] Weighted Error Value: White=0.25 (precise) /Black=0.15 (very precise)} 1-0

[Event "97th Argentine Championship 2022"]
[Site "Barichole"]
[Date "2022.12.07"]
[Round "7.4"]
[White "Paveto, Kevin"]
[Black "Flores, Diego"]
[Result "1-0"]
[ECO "B41"]
[WhiteElo "2431"]
[BlackElo "2547"]
[Annotator "TA"]
[PlyCount "99"]
[EventDate "2022.12.01"]
[EventType "tourn"]
[EventCountry "ARG"]
[SourceTitle "playchess.com"]
[Source "ChessBase"]
[SourceQuality "1"]
[TimeControl "40/5400+30:1800+30"]

{[%evp 14,99,51,39,35,20,27,18,19,30,31,25,35,19,39,23,27,11,17,10,10,20,12,0,0,0,0,0,0,0,0,0,59,54,99,123,241,229,223,230,262,284,254,261,291,255,350,340,504,360,340,339,503,510,513,379,547,452,457,457,558,525,510,447,597,589,567,472,522,506,488,452,461,411,494,526,528,445,473,433,470,475,461,453,469,436,427,406]} 1. e4 {[%emt 0:00:08]} c5 {[%emt 0:01:22]} 2. Nf3 {[%emt 0:00:08]} e6 {[%emt 0:00:24]} 3. d4 {[%emt 0:00:07]} cxd4 {[%emt 0:00:14]} 4. Nxd4 {[%emt 0:00:07]} a6 {[%emt 0:00:29]} 5. c4 {[%emt 0:00:08]} Nf6 {[%emt 0:00:47]} 6. Nc3 {[%emt 0:01:10]} Qc7 {[%emt 0:00:20]} 7. Be2 {[%emt 0:00:11]} b6 {[%emt 0:00:31]} 8. O-O {[%emt 0:00:10][%cal Oe4e5]} Bb7 {[%emt 0:00:10] Against e5. B41: Sicilian: Kan Variation: 5 c4.} 9. Qd3 {[%emt 0:01:08]} Nc6 {[%emt 0:00:44]} 10. Nxc6 {[%emt 0:01:07]} dxc6 {[%emt 0:01:07] The position is equal.} 11. f4 {[%emt 0:01:49]} Bc5+ {[%emt 0:01:06]} 12. Kh1 $1 {[%emt 0:00:30] [#]} Nd7 $146 {[%emt 0:00:16]} ({Predecessor:} 12... Rd8 13. Qf3 Bd4 14. e5 c5 15. Qg3 Ne4 16. Qxg7 Rf8 17. Nxe4 Bxe4 18. Qg3 Kd7 {0-1 (25) Maurizzi,M (2415)-Grandelius,N (2691) chess24.com INT 2019}) 13. e5 {[%emt 0:05:57]} O-O-O {[%emt 0:01:02][%cal Od7e5]} 14. Qg3 {[%emt 0:06:37]} f5 {[%emt 0:02:01]} 15. exf6 {[%emt 0:05:39]} gxf6 {[%emt 0:04:40]} 16. Be3 {[%emt 0:00:31] Threatening Bxc5.} Rhg8 {[%emt 0:29:05]} 17. Qh3 {[%emt 0:05:00] White wants to play Bxc5.} f5 {[%emt 0:34:59]} 18. Rad1 {[%emt 0:11:49]} Bb4 {[%emt 0:00:30]} 19. Na4 {[%emt 0:15:54][%cal Od1d7] [#] Black must now prevent Rxd7!} c5 $1 {[%emt 0:01:06]} 20. Bf3 {[%emt 0:00:04] Strongly threatening a3.} Bc6 {[%emt 0:01:24] Prevents a3.} 21. b3 {[%emt 0:06:46]} Nf6 {[%emt 0:00:21]} 22. Rxd8+ {[%emt 0:02:53]} Rxd8 {[%emt 0:03:05]} ({Better is} 22... Kxd8 $11 23. Rd1+ (23. Qh4 Rg6 $11) 23... Ke7) 23. Qh6 $36 {[%emt 0:01:51][%mdl 2048] White has the initiative.} Bxf3 {[%emt 0:02:15] White stays focused until the end.} 24. gxf3 {[%emt 0:03:36]} (24. Qxf6 Be4 25. Nc3 Bxc3 26. Qxc3 Rd3 27. Qh8+ Kb7 $17) 24... Nd7 {[%emt 0:10:25]} (24... Qe7 $16) 25. Qxe6 $18 {[%emt 0:01:50]} Kb7 {[%emt 0:00:04]} 26. Qxf5 {[%emt 0:03:20]} Qc6 {[%emt 0:00:49]} 27. Qxh7 {[%emt 0:07:40]} Re8 {[%emt 0:00:04]} 28. Qd3 {[%emt 0:01:30]} Nf6 {[%emt 0:00:26]} 29. Bc1 {[%emt 0:05:31][%cal Be3c1,Bc1b2,Bb2e5][%mdl 32]} Ng4 {[%emt 0:03:54]} 30. Qh7+ {[%emt 0:06:18]} ({Much less strong is} 30. a3 Ba5 31. Kg1 Nf6 $18) 30... Ka8 {[%emt 0:00:04]} (30... Kb8 $142 31. f5 (31. Nxb6 Qxb6 32. Qh3 Ne3 $11) 31... Nf6 32. Bf4+ Ka8) 31. Kg1 {[%emt 0:03:10]} Nf6 {[%emt 0:01:04]} 32. Qf7 {[%emt 0:00:14]} b5 {[%emt 0:00:22]} (32... Rg8+ $142 33. Kh1 Rd8) 33. Bb2 {[%emt 0:01:41]} Re6 {[%emt 0:00:40]} 34. Rd1 {[%emt 0:01:27] [#] Intending Rd8+ and mate.} Ba5 {[%emt 0:00:01] Inhibits Rd8+.} (34... Qe8 {was worth a try.} 35. Qxe8+ Nxe8) 35. Qf8+ {[%emt 0:01:22]} Ne8 {[%emt 0:00:17]} 36. Qxc5 {[%emt 0:00:25]} ({Not} 36. Nxc5 Qxf3 37. Nxe6 Qxd1+ 38. Kf2 Qe1+ 39. Kf3 Qxe6 $15) 36... Qb7 {[%emt 0:01:08]} 37. cxb5 {[%emt 0:00:23]} axb5 {[%emt 0:00:42]} 38. Be5 {[%emt 0:00:47] Prevents Bc7. aiming for b4.} Rg6+ {[%emt 0:00:30]} 39. Kf2 {[%emt 0:00:06]} Rc6 {[%emt 0:00:13] Inhibits b4.} 40. Qd5 {[%emt 0:00:00]} Nf6 {[%emt 0:00:00]} 41. Bxf6 {[%emt 0:05:51]} Rxf6 {[%emt 0:02:33]} 42. Qxb7+ {[%emt 0:00:08]} Kxb7 {[%emt 0:00:04][%mdl 4096] Endgame KRB-KRN} 43. Nc5+ {[%emt 0:00:09]} Kc6 {[%emt 0:00:13]} 44. Nd3 {[%emt 0:02:47] White is clearly winning.} Bb6+ {[%emt 0:00:24]} 45. Kf1 {[%emt 0:00:38]} Kb7 {[%emt 0:01:31]} 46. Re1 {[%emt 0:00:58]} Rd6 {[%emt 0:00:42]} 47. Re7+ {[%emt 0:00:06]} Kc8 {[%emt 0:00:20]} 48. Nf2 {[%emt 0:01:35]} Rc6 {[%emt 0:01:23]} 49. Re2 {[%emt 0:01:31]} Rf6 {[%emt 0:01:15]} 50. Nd3 {[%emt 0:01:45] Weighted Error Value: White=0.27 (precise) /Black=0.54} 1-0

[Event "97th Argentine Championship 2022"]
[Site "Barichole"]
[Date "2022.12.06"]
[Round "7.5"]
[White "Mareco, Sandro"]
[Black "Sorin, Ariel"]
[Result "1-0"]
[ECO "B38"]
[WhiteElo "2619"]
[BlackElo "2363"]
[Annotator "TA"]
[PlyCount "69"]
[EventDate "2022.12.01"]
[EventType "tourn"]
[EventCountry "ARG"]
[SourceTitle "playchess.com"]
[Source "ChessBase"]
[SourceQuality "1"]
[TimeControl "40/5400+30:1800+30"]

{[%evp 21,69,31,38,33,40,46,70,67,87,14,5,4,77,26,41,0,0,0,0,0,39,48,65,48,53,58,52,46,132,125,134,143,158,125,146,145,215,224,249,251,589,618,839,831,791,781,2210,2062,5297,685]} 1. d4 {[%emt 0:00:03]} Nf6 {[%emt 0:00:06]} 2. c4 {[%emt 0:00:13]} g6 {[%emt 0:00:11]} 3. Nc3 {[%emt 0:00:08]} Bg7 {[%emt 0:00:03]} 4. e4 {[%emt 0:00:04]} d6 {[%emt 0:00:06]} 5. h3 {[%emt 0:00:04]} O-O {[%emt 0:03:58]} 6. Be3 {[%emt 0:00:21]} c5 {[%emt 0:10:04]} 7. Nf3 {[%emt 0:00:17]} cxd4 {[%emt 0:02:33]} 8. Nxd4 {[%emt 0:00:09]} Nc6 {[%emt 0:00:58]} 9. Be2 {[%emt 0:00:06]} Nxd4 {[%emt 0:01:33]} 10. Bxd4 {[%emt 0:00:07]} Bd7 {[%emt 0:00:32] The main line 10...Bd7 scores better than 10...Be6.} 11. O-O {[%emt 0:00:08]} Bc6 {[%emt 0:01:08]} 12. Qc2 {[%emt 0:00:10] B38: Sicilian: Maroczy Bind with 5...Bg7 and 7...0-0.} a6 {[%emt 0:03:36]} 13. b4 {[%emt 0:18:45]} Rc8 {[%emt 0:09:08][%cal Ob7b5]} 14. Rfd1 {[%emt 0:05:31] [#] White is slightly better.} b5 $146 {[%emt 0:11:42]} ({Predecessor:} 14... Qc7 15. a4 Bd7 16. Bxf6 Bxf6 17. Nd5 Qc6 18. Nxf6+ exf6 19. Qd3 Be6 20. b5 Qxc4 21. Qxc4 Bxc4 22. Bxc4 Rxc4 23. bxa6 bxa6 24. Rxd6 Ra8 25. Rxf6 Rxe4 {½-½ (25) Jurga,J (1879)-Paeslack,L (2014) Willingen 2019}) 15. Qb2 {[%emt 0:05:07] White is more active.} (15. c5 $16) 15... bxc4 $11 {[%emt 0:07:49]} 16. Bxc4 {[%emt 0:00:05]} Bb7 {[%emt 0:01:54]} (16... a5 $1 $11 {remains equal.}) 17. Bb3 {[%emt 0:01:12]} ({White should play} 17. Bf1 $16) 17... Qc7 {[%emt 0:02:56]} 18. Nd5 {[%emt 0:05:00] Inhibits e5.} Bxd5 {[%emt 0:03:57]} 19. exd5 {[%emt 0:04:52]} Qb7 {[%emt 0:01:51][%csl LRb4,LRd5]} 20. a3 {[%emt 0:01:11]} Qb5 {[%emt 0:01:46]} 21. Re1 $36 {[%emt 0:17:16][%mdl 2048] White has good play.} Rc7 {[%emt 0:01:45]} 22. Rac1 {[%emt 0:01:18] Against a5} Rfc8 {[%emt 0:01:48]} 23. Rxc7 {[%emt 0:05:22]} Rxc7 {[%emt 0:01:41]} 24. Rc1 {[%emt 0:00:08] Prevents h5.} Qb7 {[%emt 0:13:04]} (24... Rxc1+ $14 25. Qxc1 Qd3 26. Qc8+ Bf8) 25. Rc4 {[%emt 0:12:01]} Ne8 {[%emt 0:03:26]} 26. Bxg7 {[%emt 0:01:19]} Nxg7 {[%emt 0:00:05]} 27. Qc3 {[%emt 0:00:18]} Rxc4 {[%emt 0:06:51]} 28. Qxc4 $16 {[%emt 0:00:04][%mdl 4096] Endgame Black must now prevent Qc6. KQB-KQN} ({Don't do} 28. Bxc4 Qc8 $14) 28... Nf5 {[%emt 0:01:23]} (28... Nh5 $16 {keeps fighting.}) 29. Bc2 $18 {[%emt 0:00:05]} Kg7 {[%emt 0:01:52] [#]} 30. Bd3 $1 {[%emt 0:01:11]} Kf6 $2 {[%emt 0:00:38]} (30... Kf8 31. Bf1 (31. Qxa6 Qxa6 32. Bxa6 e5 $18) 31... Ke8 32. Qxa6 Qxa6 33. Bxa6 e6 34. dxe6 fxe6) 31. g4 {[%emt 0:04:33][%cal Bg2g4,Bg4g5][%mdl 32] White is clearly winning.} ({Not} 31. Qxa6 Qxd5 32. Bf1 Qd4 $16) 31... Nh6 {[%emt 0:00:07]} 32. Qd4+ {[%emt 0:01:37]} e5 {[%emt 0:00:39]} 33. dxe6+ {[%emt 0:00:04]} Ke7 {[%emt 0:00:11]} 34. g5 {[%emt 0:00:07] [#] aiming for Qf6+.} Ng8 {[%emt 0:00:33] Against Qf6+} 35. Qg7 {[%emt 0:00:48] Weighted Error Value: White=0.12 (very precise) /Black=0.42} (35. Bc4 $142 f6 36. Qh4) 1-0

[Event "97th Argentine Championship 2022"]
[Site "Barichole"]
[Date "2022.12.06"]
[Round "7.6"]
[White "Fiorito, Joaquin"]
[Black "Gaitan, Juan Manuel"]
[Result "1-0"]
[ECO "C47"]
[WhiteElo "2344"]
[BlackElo "2347"]
[Annotator "TA"]
[PlyCount "65"]
[EventDate "2022.12.01"]
[EventType "tourn"]
[EventCountry "ARG"]
[SourceTitle "playchess.com"]
[Source "ChessBase"]
[SourceQuality "1"]
[TimeControl "40/5400+30:1800+30"]

{[%evp 16,65,0,0,-4,0,14,7,6,10,8,6,18,-8,5,0,0,0,-12,-39,0,0,3,5,23,0,0,0,0,0,19,7,77,71,78,70,94,56,55,60,53,70,143,144,151,152,187,181,195,196,512,512]} 1. e4 {[%emt 0:00:03]} e5 {[%emt 0:04:05]} 2. Nf3 {[%emt 0:00:07]} Nf6 {[%emt 0:00:06]} 3. Nc3 {[%emt 0:01:04]} Nc6 {[%emt 0:00:06]} 4. d4 {[%emt 0:00:09]} exd4 {[%emt 0:00:07]} 5. Nxd4 {[%emt 0:00:06]} Bb4 {[%emt 0:00:06]} 6. Nxc6 {[%emt 0:00:10]} bxc6 {[%emt 0:00:30]} 7. Bd3 {[%emt 0:00:05]} O-O {[%emt 0:00:07]} 8. O-O {[%emt 0:00:05]} d5 {[%emt 0:00:03]} 9. Bd2 {[%emt 0:00:42]} Rb8 {[%emt 0:00:17] C47: Scotch Four Knights and Four Knights with 4 g3.} 10. Re1 {[%emt 0:02:36]} Bg4 {[%emt 0:09:41] Prevents e5.} 11. Qc1 {[%emt 0:00:25]} Re8 {[%emt 0:00:09] The position is equal.} 12. e5 {[%emt 0:17:45]} Nd7 {[%emt 0:00:16] [#]} 13. h3 $146 {[%emt 0:00:29]} ({Predecessor:} 13. a3 Bf8 14. Bg5 Qc8 15. h3 Bh5 16. Bf5 Bg6 17. Bxg6 hxg6 18. Bf4 Nc5 19. b4 {1-0 (111) Harika,D (2517)-Paravyan,D (2617) Chess.com INT 2022}) 13... Be6 {[%emt 0:14:39]} 14. f4 {[%emt 0:10:34][%cal Bf2f4,Bf4f5,Bf5f6][%mdl 32]} Nc5 {[%emt 0:00:50]} 15. Ne2 {[%emt 0:00:17]} Bxd2 {[%emt 0:19:16]} 16. Qxd2 {[%emt 0:00:08]} Rxb2 {[%emt 0:00:16]} 17. Nd4 {[%emt 0:02:09]} (17. f5 $5 {[%cal Rf5e6]}) 17... Nxd3 {[%emt 0:12:07]} (17... Qh4 {seems wilder.} 18. Qe3 Nxd3 19. cxd3 c5) 18. Qxd3 {[%emt 0:00:08]} Rb6 {[%emt 0:00:01]} 19. f5 {[%emt 0:07:02] Prevents c5.} Bc8 {[%emt 0:06:39] [#] aiming for ...c5.} 20. f6 {[%emt 0:01:10]} (20. Qg3 $5 {[%cal Rf5f6]}) 20... Kh8 $1 {[%emt 0:00:08]} 21. Nf3 {[%emt 0:13:10] Black must now prevent Ng5.} h6 {[%emt 0:03:27] Prevents Ng5.} ({But not} 21... gxf6 22. exf6 h6 23. Rxe8+ Qxe8 24. Re1 $16) 22. Qd4 {[%emt 0:07:46]} c5 {[%emt 0:09:44]} 23. Qxc5 {[%emt 0:04:05]} (23. fxg7+ {looks sharper.} Kxg7 24. Qxc5 Qe7 25. Qxd5 Bb7 26. Qd3) 23... Bf5 {[%emt 0:00:51]} (23... gxf6 $11 {remains equal.} 24. Rad1 Be6) 24. Rad1 $36 {[%emt 0:00:55][%cal Ba1d1,Bd1d5,Bd5c5,Bc5c7][%mdl 2080] Black is under strong pressure. White is more active.} gxf6 {[%emt 0:06:02]} 25. Rxd5 {[%emt 0:05:16]} ({Much worse is} 25. Qxd5 Qxd5 26. Rxd5 fxe5 $11) 25... Qe7 {[%emt 0:00:01]} 26. exf6 {[%emt 0:16:11]} (26. a4 {is more complex.} fxe5 27. a5 Qxc5+ 28. Rxc5 Ra6 29. g4) 26... Qxc5+ {[%emt 0:00:08]} 27. Rxc5 {[%emt 0:00:11]} Rxe1+ {[%emt 0:00:03]} 28. Nxe1 {[%emt 0:00:07] KRB-KRN} Be6 {[%emt 0:00:01] [#]} (28... Rxf6 $14 29. Rxc7 a6) 29. a4 $1 {[%emt 0:02:31]} Kh7 {[%emt 0:00:23]} 30. Nd3 {[%emt 0:00:23] Prevents Rb4.} ({Don't take} 30. Rxc7 Ra6 $16) 30... Rb1+ {[%emt 0:10:06]} 31. Kh2 {[%emt 0:03:08]} Ra1 {[%emt 0:00:06]} 32. Rxc7 {[%emt 0:00:12]} Rxa4 {[%emt 0:00:35]} (32... Kg6 {is a better chance.} 33. Rxa7 Kxf6) 33. Nc5 $1 {[%emt 0:00:15][%csl LRa4,LRe6] Weighted Error Value: White=0.07 (flawless) /Black=0.26 (precise)} 1-0